Workbook

Sheet Summary of Funding (hidden)
A1: Date Issued: | H1: Last amended: 21st December 2023
A2: COVENTRY CITY COUNCIL
A3: 2023/24 Funding Allocations for Schools | N3: 16
A4: INDICATIVE Summary of Funding
A6: =_xlfn.XLOOKUP("P"&$N$3,'[5]Minimum Funding Guarantee'!$A:$A,'[5]Minimum Funding Guarantee'!$C:$C) -> Frederick Bird Primary School | N6: Checks
A9: =IF((N36+N37)=0,"","***ERROR - CALCULATED ADJUSTMENT DOES NOT EQUAL ACTUAL ***") -> 
A10: Main Funding Elements
A12: School Budget Share 2023/24 | F12: ='Budget Share Statement'!K58 -> 3848313.168 | N12: =F12-'Budget Share Statement'!K58 -> 0
A14: Indicative Early Years Funding 2023/24* (to be updated) | F14: ='EYSFF statement'!K30 -> 215478.7241 | N14: =F14-'EYSFF statement'!K30 -> 0
H16: =SUM(F12,F14) -> 4063791.892 | N16: =N12+N14 -> 0
A18: Other 2023/24 Funding Elements
A20: Indicative Pupil Premium Grant † (excludes LAC & EYPP elements) | F20: =_xlfn.XLOOKUP("P"&$N$3,[6]Allocations!$A$1:$A$65536,[6]Allocations!$V$1:$V$65536) -> 531410
A22: Indicative High Needs Top-up Funding § | F22: =_xlfn.XLOOKUP("P"&$N$3,'[7]HN Top-up Calculation'!$A:$A,'[7]HN Top-up Calculation'!$R:$R) -> 40808.19
A24: Class Size Funding | F24: =_xlfn.XLOOKUP(N3,'[8]Class size'!$A:$A,'[8]Class size'!$N:$N) -> 0
A26: In-year Admissions Funding | F26: =_xlfn.XLOOKUP("P"&$N$3,'[8]In-year admissions'!$A:$A,'[8]In-year admissions'!$M:$M) -> 40039.79
A28: Disproportionate SEN | F28: =-_xlfn.XLOOKUP("P"&$N$3,[9]Sheet1!$C:$C,[9]Sheet1!$T:$T) -> 0
A30: Mainstream schools additional grant | F30: =_xlfn.XLOOKUP("P"&$N$3,[10]Sheet1!$Z:$Z,[10]Sheet1!$X:$X) -> 129417
A32: Teachers pay additional grant 7/12ths | F32: =_xlfn.XLOOKUP("P"&N3,[11]Sheet1!$Y:$Y,[11]Sheet1!$X:$X) -> 38960
H34: =F20+F22+F24+F26+F28+F30+F32 -> 780634.98
A36: Total Revenue Resources | H36: =H16+H34 -> 4844426.872 | N36: =N12+N14+N20+N22+N24+N16 -> 0
N37: =ROUND(('Budget Share Statement'!O58+'EYSFF statement'!N30+'De-delegation'!O25+'Minimum Funding Level'!O28+'Funding Floor'!N42+'MFG Calculation'!N57),0) -> 0
A39: Notes
A40: This funding summary is intended to give you an overview of the resources allocated to the school for the financial year 2023/24.
A41: Please ensure that you read this budget share pack in conjunction with the explanatory notes which are available to download online.
A43: * Early Years funding has been updated to reflect the Summer and Autumn term census data - please see the EYSFF statement for further detail.
A44: † Pupil Premium Funding has been updated to reflect 23/24 eligibility data from DfE. This may still be subject to slight change.
A45: § Indicative High Needs Top-up Funding has been calculated based on your number of pupils on high needs bandings as at 15/08/23. This
A46: figure will change based on the real time movement of pupils during the 2023/24 financial year and so will not be final until March 2024.

Sheet Budget Share Statement (hidden)
A1: ='Summary of Funding'!A1 -> Date Issued: | K1: ='Summary of Funding'!H1 -> Last amended: 21st December 2023
A2: COVENTRY CITY COUNCIL
A3: ='Summary of Funding'!A3:H3 -> 2023/24 Funding Allocations for Schools | N3: ='Summary of Funding'!N3 -> 16
A4: INDICATIVE School Budget Share Statement
A6: =_xlfn.XLOOKUP("P"&$N$3,'[5]Minimum Funding Guarantee'!$A:$A,'[5]Minimum Funding Guarantee'!$C:$C) -> Frederick Bird Primary School | O6: Checks
A10: Factors | C10: Factor Measurement | G10: Number of Units | I10: Funding Per Unit | K10: Funding Allocated
I11: £ | K11: £
A12: Basic Entitlement
A13: Funding | C13: Pupil Number: (Oct-22 Census) | G13: =_xlfn.XLOOKUP("P"&$N$3,[12]Data!$A:$A,[12]Data!$G:$G) -> 727 | I13: =[12]Formula!$D$2 -> 3405.47172 | K13: =G13*I13 -> 2475777.94 | O13: =_xlfn.XLOOKUP("P"&$N$3,[12]Formula!$A:$A,[12]Formula!$D:$D)-K13 -> 0
K15: =K13 -> 2475777.94
A17: Deprivation Funding | C17: IDACI Band G: Pupil's IDACI < 0.20 | G17: =_xlfn.XLOOKUP("P"&$N$3,[12]Data!$A:$A,[12]Data!$V:$V) -> 53 | I17: 0 | K17: =G17*I17 -> 0
C18: IDACI Band F: 0.20 ≤ Pupil's IDACI < 0.25 | G18: =_xlfn.XLOOKUP("P"&$N$3,[12]Data!$A:$A,[12]Data!$W:$W) -> 21 | I18: =[12]Formula!$N$2 -> 230.7774 | K18: =G18*I18 -> 4846.3254 | O18: =_xlfn.XLOOKUP("P"&$N$3,[12]Formula!$A:$A,[12]Formula!$N:$N)-K18 -> 0
C19: IDACI Band E: 0.25 ≤ Pupil's IDACI < 0.30 | G19: =_xlfn.XLOOKUP("P"&$N$3,[12]Data!$A:$A,[12]Data!$X:$X) -> 24 | I19: =[12]Formula!$O$2 -> 280.9464 | K19: 6742.7136 | O19: =_xlfn.XLOOKUP("P"&$N$3,[12]Formula!$A:$A,[12]Formula!$O:$O)-K19 -> 0
C20: IDACI Band D: 0.30 ≤ Pupil's IDACI < 0.35 | G20: =_xlfn.XLOOKUP("P"&$N$3,[12]Data!$A:$A,[12]Data!$Y:$Y) -> 201 | I20: =[12]Formula!$P$2 -> 441.4872 | K20: 88738.9272 | O20: =_xlfn.XLOOKUP("P"&$N$3,[12]Formula!$A:$A,[12]Formula!$P:$P)-K20 -> 0
C21: IDACI Band C: 0.35 ≤ Pupil's IDACI < 0.40 | G21: =_xlfn.XLOOKUP("P"&$N$3,[12]Data!$A:$A,[12]Data!$Z:$Z) -> 111 | I21: =[12]Formula!$Q$2 -> 481.6224 | K21: 53460.0864 | O21: =_xlfn.XLOOKUP("P"&$N$3,[12]Formula!$A:$A,[12]Formula!$Q:$Q)-K21 -> 0
C22: IDACI Band B: 0.40 ≤ Pupil's IDACI < 0.50 | G22: =_xlfn.XLOOKUP("P"&$N$3,[12]Data!$A:$A,[12]Data!$AA:$AA) -> 304 | I22: =[12]Formula!$R$2 -> 511.7238 | K22: 155564.0352 | O22: =_xlfn.XLOOKUP("P"&$N$3,[12]Formula!$A:$A,[12]Formula!$R:$R)-K22 -> 0
C23: IDACI Band A: 0.50 ≤ Pupil's IDACI ≤ 1.00 | G23: =_xlfn.XLOOKUP("P"&$N$3,[12]Data!$A:$A,[12]Data!$AB:$AB) -> 13 | I23: =[12]Formula!$S$2 -> 672.2646 | K23: 8739.4398 | O23: =_xlfn.XLOOKUP("P"&$N$3,[12]Formula!$A:$A,[12]Formula!$S:$S)-K23 -> 0
C24: Free School Meals: (Oct-22 FSM Eligibility) | G24: =_xlfn.XLOOKUP("P"&$N$3,[12]Data!$A:$A,[12]Data!$T:$T) -> 356 | I24: =[12]Formula!$E$2 -> 481.6224 | K24: 171457.5744 | O24: =_xlfn.XLOOKUP("P"&$N$3,[12]Formula!$A:$A,[12]Formula!$E:$E)-K24 -> 0
C25: Free School Meals Ever 6: (Oct-22 FSM Eligibility) | G25: =_xlfn.XLOOKUP("P"&$N$3,[12]Data!$A:$A,[12]Data!$U:$U) -> 366 | I25: =[12]Formula!$F$2 -> 707.3829 | K25: 258902.1414 | O25: =_xlfn.XLOOKUP("P"&$N$3,[12]Formula!$A:$A,[12]Formula!$F:$F)-K25 -> 0
K27: =SUM(K17:K25) -> 748451.2434
A29: Prior Attainment Funding | C29: No.pupils not reaching expected level of development | G29: =_xlfn.XLOOKUP("P"&$N$3,[12]Data!$A:$A,[12]Data!$AC:$AC) -> 295.1164507 | I29: =[12]Formula!$G$2 -> 1158.9039 | K29: =G29*I29 -> 342011.6057 | O29: =_xlfn.XLOOKUP("P"&$N$3,[12]Formula!$A:$A,[12]Formula!$G:$G)-K29 -> 0
A31: English as an Additional
A32: Language Funding | C32: No. EAL in compulsory education for 3 years or less | G32: =_xlfn.XLOOKUP("P"&$N$3,[12]Data!$A:$A,[12]Data!$AD:$AD) -> 277.33281 | I32: =[12]Formula!$H$2 -> 581.9604 | K32: =G32*I32 -> 161396.7131 | O32: =_xlfn.XLOOKUP("P"&$N$3,[12]Formula!$A:$A,[12]Formula!$H:$H)-K32 -> 0
A34: Pupil Mobility Funding | C34: No.pupils in last 3 years who didn’t start school in Sept | G34: =_xlfn.XLOOKUP("P"&$N$3,[12]Data!$A:$A,[12]Data!$AE:$AE) -> 59.38 | I34: =[12]Formula!$I$2 -> 948.1941 | K34: =G34*I34 -> 56303.76566 | O34: =_xlfn.XLOOKUP("P"&$N$3,[12]Formula!$A:$A,[12]Formula!$I:$I)-K34 -> 0
A36: Lump Sum | C36: One set amount for all schools | K36: =_xlfn.XLOOKUP("P"&$N$3,[12]Formula!$A:$A,[12]Formula!$J:$J) -> 128432.64 | O36: =_xlfn.XLOOKUP("P"&$N$3,[12]Formula!$A:$A,[12]Formula!$J:$J)-K36 -> 0
A38: Split Sites Funding | C38: Lump Sum | K38: =_xlfn.XLOOKUP("P"&$N$3,[12]Formula!$A:$A,[12]Formula!$L:$L) -> 0 | O38: =_xlfn.XLOOKUP("P"&$N$3,[12]Formula!$A:$A,[12]Formula!$L:$L)-K38 -> 0
A40: Rates Funding | C40: Estimated 2023/24 rates bill | H40: =_xlfn.XLOOKUP("P"&$N$3,[12]Formula!$A:$A,[12]Formula!$K:$K) -> 87552 | I40: =INDEX([13]Formula!$J:$J,MATCH("P"&$N$3,[13]Formula!$A:$A,0))-E40 -> 128432.64 | K40: =H40 -> 87552 | O40: =_xlfn.XLOOKUP("P"&$N$3,[12]Formula!$A:$A,[12]Formula!$K:$K)-K40 -> 0
A42: Total Formula Factor Funding | K42: =K15+K27+K32+K34+K36+K38+K40+K29 -> 3999925.908 | O42: =_xlfn.XLOOKUP("P"&$N$3,[12]Formula!$A:$A,[12]Formula!$U:$U)-K42 -> 0
A44: Minimum Per Pupil (MPP) Funding Level Allocation | H44: ='Minimum Funding Level'!J28 -> 0 | O44: =ROUND(_xlfn.XLOOKUP("P"&$N$3,[12]Formula!$A:$A,[12]Formula!$V:$V),2)-H44 -> 0
A46: Total Funding Allocated before Minimum Funding Guarantee (MFG) | K46: =K42+H44 -> 3999925.908 | O46: =ROUND(_xlfn.XLOOKUP("P"&$N$3,[12]Formula!$A:$A,[12]Formula!$W:$W),2)-K46 -> 0.001747874543
A48: MFG Protection (additional funding/top-slice) | H48: ='MFG Calculation'!J64 -> 0 | O48: =ROUND(_xlfn.XLOOKUP("P"&$N$3,[12]Formula!$A:$A,[12]Formula!$Z:$Z),2)-H48 -> 0
A50: Total Funding Allocated after protection Arrangements | K50: =K46+H48 -> 3999925.908 | O50: =ROUND(_xlfn.XLOOKUP("P"&$N$3,[12]Formula!$A:$A,[12]Formula!$AA:$AA),2)-K50 -> 0.001747874543
A52: 23/24 De-delegation | C52: See separate 'De-delegation' sheet | H52: ='De-delegation'!K25 -> -46580.74073 | O52: =ROUND(_xlfn.XLOOKUP("P"&$N$3,[12]Formula!$A:$A,[12]Formula!$AB:$AB),2)-H52 -> 0.0007271133873
A54: 23/24 Risk Protection Arrangement Deduction | H54: =-IFERROR(_xlfn.XLOOKUP("P"&$N$3,'[14]LAMS Data'!$AH:$AH,'[14]LAMS Data'!$AE:$AE),0) -> -17480
A56: 23/24 Business Rates Deduction | H56: =-H40 -> -87552
A58: Total Funding Allocated after MFG, De-delegation and RPA & NNDR Adjustments | K58: =K50+H52+H54+H56 -> 3848313.168 | O58: =ROUND(_xlfn.XLOOKUP("P"&$N$3,[12]Formula!$A:$A,[12]Formula!$AC:$AC),2)-K58+H56+H54 -> 0.002474987879
A60: Notes
A61: If you have chosen to join the DfE Risk Protection Arrangement, the value of your charge has been deducted from your budget share.

Sheet Minimum Funding Level (hidden)
A1: ='Summary of Funding'!A1 -> Date Issued: | K1: ='Summary of Funding'!H1 -> Last amended: 21st December 2023
A2: COVENTRY CITY COUNCIL
A3: ='Summary of Funding'!A3:H3 -> 2023/24 Funding Allocations for Schools | N3: ='Summary of Funding'!N3 -> 16
A4: Calculation of Minimum Per Pupil (MPP) Funding Level
A6: =_xlfn.XLOOKUP("P"&$N$3,'[5]Minimum Funding Guarantee'!$A:$A,'[5]Minimum Funding Guarantee'!$C:$C) -> Frederick Bird Primary School | N6: Checks
G9: £ | J9: £
A10: NFF Minimum per pupil funding rate | G10: ='[12]Minimum Per Pupil'!$D$3 -> 4405 | N10: ='[12]Minimum Per Pupil'!$D$3-G10 -> 0
A12: October 2022 Pupil Numbers | G12: =_xlfn.XLOOKUP("P"&$N$3,'[12]Minimum Per Pupil'!$A:$A,'[12]Minimum Per Pupil'!$D:$D) -> 727 | N12: =_xlfn.XLOOKUP("P"&$N$3,'[12]Minimum Per Pupil'!$A:$A,'[12]Minimum Per Pupil'!$D:$D)-G12 -> 0
A14: Minimum Funding Level (MFL) | F14: [A] | J14: =G10*G12 -> 3202435 | N14: =_xlfn.XLOOKUP("P"&$N$3,'[12]Minimum Per Pupil'!$A:$A,'[12]Minimum Per Pupil'!$E:$E)-J14 -> 0
A17: Total Formula Factor Funding | G17: ='Budget Share Statement'!K42 -> 3999925.908 | N17: =_xlfn.XLOOKUP("P"&$N$3,'[12]Minimum Per Pupil'!$A:$A,'[12]Minimum Per Pupil'!$G:$G)-G17 -> 0
A19: Less: exempt premises factors
A20: 2023/24 NNDR | G20: =_xlfn.XLOOKUP("P"&$N$3,[12]Formula!$A:$A,[12]Formula!$K:$K) -> 87552 | H20: =INDEX([13]Formula!$K:$K,MATCH("P"&$N$3,[13]Formula!$A:$A,0))-A20 ->  | N20: =_xlfn.XLOOKUP("P"&$N$3,[12]Formula!$A:$A,[12]Formula!$K:$K)-G20 -> 0
A22: 2023/24 Split Site | G22: =_xlfn.XLOOKUP("P"&$N$3,[12]Formula!$A:$A,[12]Formula!$L:$L) -> 0 | H22: =INDEX([13]Formula!$K:$K,MATCH("P"&$N$3,[13]Formula!$A:$A,0))-A22 ->  | N22: =_xlfn.XLOOKUP("P"&$N$3,[12]Formula!$A:$A,[12]Formula!$L:$L)-G22 -> 0
A25: 2023/24 Funding for MFL comparison | F25: [B] | J25: =G17-SUM(G20:G22) -> 3912373.908 | N25: =_xlfn.XLOOKUP("P"&$N$3,'[12]Minimum Per Pupil'!$A:$A,'[12]Minimum Per Pupil'!$K:$K)-J25 -> 0
A28: MFL shortfall to be funded [B] - [A] | F28: = [B] - [A] | J28: =IF(J25<J14,J14-J25,0) -> 0 | N28: =_xlfn.XLOOKUP("P"&$N$3,'[12]Minimum Per Pupil'!$A:$A,'[12]Minimum Per Pupil'!$M:$M)-J28 -> 0

Sheet MFG Calculation (hidden)
A1: ='Summary of Funding'!A1 -> Date Issued: | K1: ='Summary of Funding'!H1 -> Last amended: 21st December 2023
A2: COVENTRY CITY COUNCIL
A3: ='Summary of Funding'!A3:H3 -> 2023/24 Funding Allocations for Schools | N3: ='Summary of Funding'!N3 -> 16
A4: Calculation of Minimum Funding Guarantee
A6: =_xlfn.XLOOKUP("P"&$N$3,[5]Formula!$A:$A,[5]Formula!$C:$C) -> Frederick Bird Primary School | N6: Checks
A9: Baseline | C9: =IF(N57>=0," ","DOES NOT BALANCE") ->  | G9: £ | J9: £
A11: Final Budget Share 2022/23 (Excluding Early Years) | J11: =_xlfn.XLOOKUP("P"&$N$3,'[12]Minimum Funding Guarantee'!$A:$A,'[12]Minimum Funding Guarantee'!$H:$H) -> 3618765.854
A13: Less:
A14: 2022/23 Rates Funding | G14: =_xlfn.XLOOKUP("P"&$N$3,'[12]Minimum Funding Guarantee'!$A:$A,'[12]Minimum Funding Guarantee'!$J:$J) -> 75264 | H14: =INDEX('[13]Minimum Funding Guarantee'!$H:$H,MATCH("P"&$N$3,'[13]Minimum Funding Guarantee'!$A:$A,0)) -> 3618765.854
A16: 2023/24 Lump Sum | G16: =_xlfn.XLOOKUP("P"&$N$3,'[12]Minimum Funding Guarantee'!$A:$A,'[12]Minimum Funding Guarantee'!$I:$I) -> 128432.64 | H16: =INDEX('[13]Minimum Funding Guarantee'!$H:$H,MATCH("P"&$N$3,'[13]Minimum Funding Guarantee'!$A:$A,0)) -> 3618765.854
A18: 2022/23 Education Improvement Commissioning Pot | G18: =_xlfn.XLOOKUP("P"&$N$3,'[12]Minimum Funding Guarantee'!$A:$A,'[12]Minimum Funding Guarantee'!$K:$K) -> 7317.319286 | H18: =INDEX('[13]Minimum Funding Guarantee'!$H:$H,MATCH("P"&$N$3,'[13]Minimum Funding Guarantee'!$A:$A,0)) -> 3618765.854
A20: 2022/23 Split Site | G20: =_xlfn.XLOOKUP("P"&$N$3,'[12]Minimum Funding Guarantee'!$A:$A,'[12]Minimum Funding Guarantee'!$L:$L) -> 0 | H20: =INDEX('[13]Minimum Funding Guarantee'!$H:$H,MATCH("P"&$N$3,'[13]Minimum Funding Guarantee'!$A:$A,0)) -> 3618765.854 | J20: =-SUM(G14,G16,G18,G20) -> -211013.9593
A22: Add:
A23: 2022/23 Supplementary Grant | G23: =_xlfn.XLOOKUP("P"&$N$3,'[12]Minimum Funding Guarantee'!$A:$A,'[12]Minimum Funding Guarantee'!$M:$M) -> 102633.7334 | H23: =INDEX('[13]Minimum Funding Guarantee'!$H:$H,MATCH("P"&$N$3,'[13]Minimum Funding Guarantee'!$A:$A,0)) -> 3618765.854 | J23: =G23 -> 102633.7334
A25: Adjusted Budget Share 2022/23 | J25: =J11+J20+J23 -> 3510385.628 | N25: =_xlfn.XLOOKUP("P"&$N$3,'[12]Minimum Funding Guarantee'!$A:$A,'[12]Minimum Funding Guarantee'!$N:$N)-J25 -> 0
A28: Guaranteed Unit Funding Calculation | J28: £
A30: Adjusted Budget Share 2022/23 | G30: =J25 -> 3510385.628
A32: October 2021 Pupil Number | G32: =_xlfn.XLOOKUP("P"&$N$3,'[12]Minimum Funding Guarantee'!$A:$A,'[12]Minimum Funding Guarantee'!$D:$D) -> 709 | H32: =INDEX('[13]Minimum Funding Guarantee'!$H:$H,MATCH("P"&$N$3,'[13]Minimum Funding Guarantee'!$A:$A,0)) -> 3618765.854
A34: Adjusted Budget Share 2022/23 Per Pupil | J34: =G30/G32 -> 4951.178601 | N34: =_xlfn.XLOOKUP("P"&$N$3,'[12]Minimum Funding Guarantee'!$A:$A,'[12]Minimum Funding Guarantee'!$O:$O)-J34 -> 0
A36: Minimum Funding Guarantee Protection Level | G36: ='[12]Minimum Funding Guarantee'!$R$3-1 -> 0.005
A38: 2023/24 Guaranteed Unit Funding | J38: =J34*(1+G36) -> 4975.934494
A41: Guaranteed Funding Level Calculation
A43: 2023/24 Guaranteed Unit Funding | G43: =J38 -> 4975.934494
A45: October 2022 Pupil Number | G45: =_xlfn.XLOOKUP("P"&$N$3,'[12]Minimum Funding Guarantee'!$A:$A,'[12]Minimum Funding Guarantee'!$E:$E) -> 727 | H45: =INDEX('[13]Minimum Funding Guarantee'!$H:$H,MATCH("P"&$N$3,'[13]Minimum Funding Guarantee'!$A:$A,0)) -> 3618765.854
A47: 2023/24 Guaranteed Funding Level | J47: =G43*G45 -> 3617504.377
A49: Add:
A50: 2023/24 Rates | G50: =_xlfn.XLOOKUP("P"&$N$3,'[12]Minimum Funding Guarantee'!$A:$A,'[12]Minimum Funding Guarantee'!$Z:$Z) -> 87552 | H50: =INDEX('[13]Minimum Funding Guarantee'!$H:$H,MATCH("P"&$N$3,'[13]Minimum Funding Guarantee'!$A:$A,0)) -> 3618765.854
A52: 2023/24 Lump Sum | G52: =_xlfn.XLOOKUP("P"&$N$3,'[12]Minimum Funding Guarantee'!$A:$A,'[12]Minimum Funding Guarantee'!$Y:$Y) -> 128432.64 | H52: =INDEX('[13]Minimum Funding Guarantee'!$H:$H,MATCH("P"&$N$3,'[13]Minimum Funding Guarantee'!$A:$A,0)) -> 3618765.854
A54: 2023/24 Split Site | G54: =_xlfn.XLOOKUP("P"&$N$3,'[12]Minimum Funding Guarantee'!$A:$A,'[12]Minimum Funding Guarantee'!$AA:$AA) -> 0 | H54: =INDEX('[13]Minimum Funding Guarantee'!$H:$H,MATCH("P"&$N$3,'[13]Minimum Funding Guarantee'!$A:$A,0)) -> 3618765.854 | J54: =SUM(G50,G52) -> 215984.64
A57: 2023/24 Minimum Funding Guarantee | J57: =J47+J54 -> 3833489.017 | N57: =_xlfn.XLOOKUP("P"&$N$3,'[12]Minimum Funding Guarantee'!$A:$A,'[12]Minimum Funding Guarantee'!$Q:$Q)-J57 -> 0
A60: 2023/24 Minimum Funding Guarantee | G60: =J47+J54 -> 3833489.017
A62: 2023/24 Total Formula Funding allocated pre-MFG | G62: ='Budget Share Statement'!K46 -> 3999925.908
A64: 2023/24 MFG Protection (additional funding/top-slice) | J64: =IF(G60>G62,G60-G62,0) -> 0 | N64: =_xlfn.XLOOKUP("P"&$N$3,'[12]Minimum Funding Guarantee'!$A:$A,'[12]Minimum Funding Guarantee'!$V:$V)-J64 -> -3.54781572e-09
A66: Note:
A67: The Minimum Funding Guarantee is compared with your Budget Share before 2023/24 de-delegated budgets are removed.

Sheet De-delegation (hidden)
A1: ='Summary of Funding'!A1 -> Date Issued: | K1: ='Summary of Funding'!H1 -> Last amended: 21st December 2023
A2: COVENTRY CITY COUNCIL
A3: ='Summary of Funding'!A3:H3 -> 2023/24 Funding Allocations for Schools | N3: ='Summary of Funding'!N3 -> 16
A4: ="De-Delegation Detail" -> De-Delegation Detail
A6: =_xlfn.XLOOKUP("P"&$N$3,[5]Formula!$A:$A,[5]Formula!$C:$C) -> Frederick Bird Primary School | O6: Checks
A10: Factors | C10: Factor Measurement | G10: Number of Units | I10: Funding Per Unit | K10: Funding Allocated
I11: £ | K11: £
A12: Basic Entitlement
A13: Funding
A14: Maternity Cover | C14: Pupil Number: (Oct-22 Census) | G14: =INDEX([13]Data!$D:$D,MATCH("P"&$N$3,[13]Data!$A:$A,0)) -> 727 | I14: =-'[13]New Del & De-Del'!$G$9 -> -34.13 | K14: =G14*I14 -> -24812.51 | O14: =INDEX('[13]New Del & De-Del'!$K:$K,MATCH("P"&$N$3,'[13]New Del & De-Del'!$A:$A,0))+K14 -> 0
A15: Trade Union Facility | C15: Pupil Number: (Oct-22 Census) | G15: =INDEX([13]Data!$D:$D,MATCH("P"&$N$3,[13]Data!$A:$A,0)) -> 727 | I15: =-'[13]New Del & De-Del'!$G$10 -> -4 | K15: =G15*I15 -> -2908 | O15: =INDEX('[13]New Del & De-Del'!$K:$K,MATCH("P"&$N$3,'[13]New Del & De-Del'!$A:$A,0))+K14 -> 0
K17: =SUM(K14:K15) -> -27720.51 | O17: =INDEX('[13]New Del & De-Del'!$D:$D,MATCH("P"&$N$3,'[13]New Del & De-Del'!$A:$A,0))+K17 -> 0
A18: Deprivation Funding
A19: Free School Meal Eligibility | C19: Free School Meals: (Oct-22 FSM Eligibility) | G19: =INDEX([13]Data!$T:$T,MATCH("P"&$N$3,[13]Data!$A:$A,0)) -> 356 | I19: =-'[13]New Del & De-Del'!$G$7 -> -2.667090496 | K19: =G19*I19 -> -949.4842164 | O19: =INDEX('[13]New Del & De-Del'!$E:$E,MATCH("P"&$N$3,'[13]New Del & De-Del'!$A:$A,0))+K19 -> 0
A21: English as an Additional
A22: Language Funding
A23: EMAS: New Arrivals Grant | C23: EAL3: EAL in child's 1st 3 years of compulsory education | G23: =INDEX([13]Data!$AD:$AD,MATCH("P"&$N$3,[13]Data!$A:$A,0)) -> 277.33281 | I23: =-'[13]New Del & De-Del'!$G$12 -> -64.58214053 | K23: =G23*I23 -> -17910.74651 | O23: =INDEX('[13]New Del & De-Del'!$F:$F,MATCH("P"&$N$3,'[13]New Del & De-Del'!$A:$A,0))+K23 -> 0
A25: Total De-Delegation | K25: =K17+K19+K23 -> -46580.74073 | O25: =INDEX('[13]New Del & De-Del'!$H:$H,MATCH("P"&$N$3,'[13]New Del & De-Del'!$A:$A,0))+K25 -> 0

Sheet EYSFF statement (hidden)
A1: ='Summary of Funding'!A1 -> Date Issued: | K1: ='Summary of Funding'!H1 -> Last amended: 21st December 2023
A2: COVENTRY CITY COUNCIL
A3: ='Summary of Funding'!A3:H3 -> 2023/24 Funding Allocations for Schools | N3: ='Summary of Funding'!N3 -> 16
A4: INDICATIVE Early Years Funding Statement
A6: =_xlfn.XLOOKUP("P"&$N$3,[5]Formula!$A:$A,[5]Formula!$C:$C) -> Frederick Bird Primary School | N6: Checks
A9: School Data | E9: Summer Term Rates | I9: Autumn & Spring Rates
E10: Free Entitlement | G10: Extended Entitlement | I10: Free Entitlement | K10: Extended Entitlement
A11: January 2023 Headcount | E11: =_xlfn.IFNA(_xlfn.XLOOKUP("P"&$N$3,'[5]Early Years Formula'!$A:$A,'[5]Early Years Formula'!$D:$D),0) -> 70 | G11: =_xlfn.IFNA(_xlfn.XLOOKUP("P"&$N$3,'[5]Early Years Formula'!$A:$A,'[5]Early Years Formula'!$D:$D),0) -> 70 | I11: =_xlfn.IFNA(_xlfn.XLOOKUP("P"&$N$3,'[5]Early Years Formula'!$A:$A,'[5]Early Years Formula'!$D:$D),0) -> 70 | K11: =_xlfn.IFNA(_xlfn.XLOOKUP("P"&$N$3,'[5]Early Years Formula'!$A:$A,'[5]Early Years Formula'!$D:$D),0) -> 70
A12: IDACI based on January 2023 census | E12: =_xlfn.IFNA(_xlfn.XLOOKUP("P"&$N$3,'[5]Early Years Formula'!$A:$A,'[5]Early Years Formula'!$E:$E),0) -> 0.3500714286 | G12: =_xlfn.IFNA(_xlfn.XLOOKUP("P"&$N$3,'[5]Early Years Formula'!$A:$A,'[5]Early Years Formula'!$E:$E),0) -> 0.3500714286 | I12: =_xlfn.IFNA(_xlfn.XLOOKUP("P"&$N$3,'[5]Early Years Formula'!$A:$A,'[5]Early Years Formula'!$E:$E),0) -> 0.3500714286 | K12: =_xlfn.IFNA(_xlfn.XLOOKUP("P"&$N$3,'[5]Early Years Formula'!$A:$A,'[5]Early Years Formula'!$E:$E),0) -> 0.3500714286
A13: Universal Base Rate | E13: ='[5]Early Years Formula'!$D$2 -> 4.43 | G13: ='[5]Early Years Formula'!$D$2 -> 4.43 | I13: ='[5]Early Years Formula'!$D$3 -> 4.81 | K13: ='[5]Early Years Formula'!$D$3 -> 4.81
A14: Universal Deprivation Rate | E14: ='[5]Early Years Formula'!$E$2 -> 1.33 | G14: ='[5]Early Years Formula'!$E$2 -> 1.33 | I14: ='[5]Early Years Formula'!$E$3 -> 1.44 | K14: ='[5]Early Years Formula'!$E$3 -> 1.44
E17: Summer Term 2023 | G17: Autumn Term 2023 | I17: Spring Term 2024 | K17: Whole Financial Year
E18: (12 Weeks) | G18: (15 Weeks) | I18: (11 Weeks) | K18: (38 Weeks)
E19: (Per May 23 census) | G19: (Per Oct 23 census) | I19: (Per Jan 22 census)
A20: Formula Factors | E20: Updated | G20: Updated | I20: To be updated
A21: Free Entitlement Headcount | E21: =_xlfn.IFNA(_xlfn.XLOOKUP("P"&$N$3,'[5]Early Years Formula'!$A:$A,'[5]Early Years Formula'!$I:$I),0) -> 77 | G21: =_xlfn.IFNA(_xlfn.XLOOKUP("P"&$N$3,'[12]Early Years Formula'!$A:$A,'[12]Early Years Formula'!$P:$P),0) -> 67 | I21: =_xlfn.IFNA(_xlfn.XLOOKUP("P"&$N$3,'[5]Early Years Formula'!$A:$A,'[5]Early Years Formula'!$W:$W),0) -> 77
A22: Free Entitlement Hours Provided | E22: =_xlfn.IFNA(_xlfn.XLOOKUP("P"&$N$3,'[5]Early Years Formula'!$A:$A,'[5]Early Years Formula'!$H:$H),0) -> 13860 | G22: =_xlfn.IFNA(_xlfn.XLOOKUP("P"&$N$3,'[12]Early Years Formula'!$A:$A,'[12]Early Years Formula'!$O:$O),0) -> 15075 | I22: =_xlfn.IFNA(_xlfn.XLOOKUP("P"&$N$3,'[5]Early Years Formula'!$A:$A,'[5]Early Years Formula'!$V:$V),0) -> 12705
A23: Extended Entitlement Headcount | E23: =_xlfn.IFNA(_xlfn.XLOOKUP("P"&$N$3,'[5]Early Years Formula'!$A:$A,'[5]Early Years Formula'!$K:$K),0) -> 0 | G23: =_xlfn.IFNA(_xlfn.XLOOKUP("P"&$N$3,'[12]Early Years Formula'!$A:$A,'[12]Early Years Formula'!$R:$R),0) -> 0 | I23: =_xlfn.IFNA(_xlfn.XLOOKUP("P"&$N$3,'[5]Early Years Formula'!$A:$A,'[5]Early Years Formula'!$Y:$Y),0) -> 0
A24: Extended Entitlement Hours Provided | E24: =_xlfn.IFNA(_xlfn.XLOOKUP("P"&$N$3,'[5]Early Years Formula'!$A:$A,'[5]Early Years Formula'!$J:$J),0) -> 0 | G24: =_xlfn.IFNA(_xlfn.XLOOKUP("P"&$N$3,'[12]Early Years Formula'!$A:$A,'[12]Early Years Formula'!$Q:$Q),0) -> 0 | I24: =_xlfn.IFNA(_xlfn.XLOOKUP("P"&$N$3,'[5]Early Years Formula'!$A:$A,'[5]Early Years Formula'!$X:$X),0) -> 0
A26: Base Rate Funding | E26: =IFERROR((E22+E24)*$E13,0) -> 61399.8 | G26: =IFERROR((G22+G24)*$I13,0) -> 72510.75 | I26: =IFERROR((I22+I24)*$I13,0) -> 61111.05
A28: Deprivation Funding | E28: =IFERROR((E21+E23)*$E$14*15*12*$E$12,0) -> 6453.1467 | G28: =IFERROR((G21+G23)*$I$14*15*15*$I$12,0) -> 7599.350571 | I28: =IFERROR((I21+I23)*$I$14*15*11*$I$12,0) -> 6404.6268
A30: Total 2023/24 Funding Under EYSFF (£) | E30: =E28+E26 -> 67852.9467 | G30: =G28+G26 -> 80110.10057 | I30: =I28+I26 -> 67515.6768 | K30: =E30+G30+I30 -> 215478.7241 | N30: =_xlfn.IFNA(_xlfn.XLOOKUP("P"&$N$3,'[5]Early Years Formula'!$A:$A,'[12]Early Years Formula'!$AC:$AC),0)-K30 -> 0
A33: Note:
A34: This Early Years budget has been estimated based on full participation at the 22/23 census levels and 23/24 hourly rates
A36: At this point in time, you will have the best knowledge of relevant pupil numbers and as such are in the best position to estimate
A37: what the EYSFF funding position will be. Work with your SFO's to make an estimate and work through the financial implications.
A39: Your actual Early Years funding will be updated through the year to reflect the actual provision delivered as recorded on the
A40: Summer-23, Autumn-23 and Spring-24 school census information. As in previous years, this means that your Early Years
A41: funding will not be finalised until after the Spring 2024 census has been finalised.

Sheet Further Delegation Info (hidden)
A1: ='Summary of Funding'!A1 -> Date Issued: | H1: ='Summary of Funding'!H1 -> Last amended: 21st December 2023 | N1: ID
A2: COVENTRY CITY COUNCIL
A3: ='Summary of Funding'!A3:H3 -> 2023/24 Funding Allocations for Schools
A4: Further Delegation Information
A6: All Schools
A9: The 2013/14 School Funding Reform required local authorities to delegate some centrally retained DSG budgets to schools; those budgets are listed below in the columns headed "Delegated in 2013/14" for your information.
A11: For 2023/24 maintained schools have opted to return some of this funding to the Local Authority to continue central provision of the relevant services. The delegated budget available to each maintained school therefore excludes these returned budgets. The relevant amounts are listed below in the columns headed "De-delegation in 2023/24" for your reference.
A17: S251 line | B17: Further Delegation Areas | C17: Delegated in 2013/14 | F17: De-delegation in 2023/24
C18: Primary (all) £ | D18: Secondary (all) £ | E18: Total (all) £ | F18: Primary Maintained £ | G18: Secondary Maintained £ | H18: Total Maintained £
A19: 1.1.4 | B19: Free school meal eligibility | C19: 20899.32112 | D19: 11151.53862 | E19: 32050.85975 | F19: ='[13]New Del & De-Del'!$I$7 -> 13807.5275 | G19: 0 | H19: =SUM(F19:G19) -> 13807.5275
A20: 1.1.7 | B20: Licences/subscriptions | C20: 56639.72318 | D20: 35735.64289 | E20: 92375.36607 | F20: ='[15]New Del & De-Del'!$I$8 -> 0 | G20: 0 | H20: =SUM(F20:G20) -> 0
A21: 1.1.8 | B21: Maternity/special staffing suspension | C21: 356766.1768 | D21: 225094.1208 | E21: 581860.2976 | F21: ='[13]New Del & De-Del'!$I$9 -> 667616.93 | G21: 0 | H21: 667616.93
A22: 1.1.9 | B22: Trade Union facility | C22: 195944.4399 | D22: 123627.026 | E22: 319571.4659 | F22: ='[13]New Del & De-Del'!$I$10 -> 78244 | G22: 0 | H22: 78244
A23: 1.1.10 | B23: School Improvement | C23: 0 | D23: 0 | E23: 0 | F23: ='[15]New Del & De-Del'!$I$11 -> 0 | G23: 0 | H23: 0
A24: 1.1.3 | B24: Ethnic Minority Acheivement Service (EMAS) | C24: 991053 | D24: 284303 | E24: 1275356 | F24: ='[13]New Del & De-Del'!$I$12 -> 269792.0132 | G24: 0 | H24: 269792.0132
A25: 1.1.2 | B25: Behaviour support services | C25: 310504 | D25: 256781 | E25: 567285 | F25: =-'[15]New Del & De-Del'!$I$13 -> 0 | G25: =-'[16]New Del & De-Del'!$J13 -> 0 | H25: 0
B26: Totals | C26: =SUM(C19:C25) -> 1931806.661 | D26: 936692.3283 | E26: 2868498.989 | F26: 1029460.471 | G26: 0 | H26: 1029460.471 | J26: =H26-'[13]New Del & De-Del'!$K$14 -> 0

Sheet ISB (hidden)
A1: ='Summary of Funding'!A1 -> Date Issued: | F1: ='Summary of Funding'!H1 -> Last amended: 21st December 2023 | J1: ID
A2: COVENTRY CITY COUNCIL
A3: 2023/24 Funding Allocations for Schools
A5: Individual Schools Budget (ISB) 2023/24
A8: This page shows how the Individual Schools Budget (ISB), which is the total of all schools block delegated budget shares, has changed from the previous year. It shows the financial effect, in overall budget terms, of policy and funding decisions in terms of the increased or decreased level of resources for schools. The final ISB figure represents the total level of resources which go into the Fair Funding Formula to produce schools budget shares.
C14: Schools | D14: Schools
C15: Block | D15: Block
C16: (Primary) | D16: (Secondary)
C17: £ | D17: £
B19: FINAL ISB 2022/23 | C19: ='[17]PPR (New Blocks)'!$E$9 -> 144279729.3 | D19: ='[17]PPR (New Blocks)'!$F$9 -> 127380350.9
B21: Removal of 2022/23 expenditure funded by reserves | C21: ='[17]PPR (New Blocks)'!$E$11 -> -240718.1312 | D21: ='[17]PPR (New Blocks)'!$F$11 -> -209281.8688
B24: Revised Base for 2022/23 | C24: =SUM(C19:C23) -> 144039011.2 | D24: =SUM(D19:D23) -> 127171069.1
B26: Resource Adjustments
B27: De-delegation adjustments | C27: ='[17]PPR (New Blocks)'!$E$22+'[17]PPR (New Blocks)'!$E$23 -> -169962.1849
B28: NFF - Additional resource | C28: ='[17]PPR (New Blocks)'!$E$35 -> 1969057.206 | D28: ='[17]PPR (New Blocks)'!$F$35 -> 2556152.755
B29: NFF - supplementary funding rolled into DSG | C29: ='[17]PPR (New Blocks)'!$E$40 -> 4010343.299 | D29: ='[17]PPR (New Blocks)'!$F$40 -> 3770414.07
B31: Education Service PPR
B32: Pupil number changes | C32: ='[17]PPR (New Blocks)'!$E$57+'[17]PPR (New Blocks)'!$E$58 -> 2965093.49 | D32: ='[17]PPR (New Blocks)'!$F$57+'[17]PPR (New Blocks)'!$F$58 -> 5722866.687
B33: PFI Factor Change | D33: ='[17]PPR (New Blocks)'!$F$36 -> 77159.81216
B36: FINAL ISB 2023/24 | C36: =SUM(C24:C35) -> 152813543 | D36: =SUM(D24:D35) -> 139297662.4
A40: If you have any queries about any of this information, please contact Paul Hammond 7697 2635

Sheet LogIn (hidden)
A1: User Name | B1: Password | C1: ID
A2: Alderman's Green | B2: NcR96Na | C2: 1
A3: Aldermoor Farm | B3: 8UBcN4 | C3: 2
A4: Allesley | B4: uE98HX | C4: 3
A5: Allesley Hall | B5: c2r66H | C5: 4
A6: Broad Heath | B6: 94ctnJ | C6: 5
A7: Cannon Park | B7: 4V8gK4 | C7: 6
A8: Charter | B8: bHkpG8a | C8: 7
A9: Clifford Bridge | B9: VksmRa1a | C9: 8
A10: Coundon Primary | B10: 4Y428c | C10: 9
A11: Courthouse Green | B11: BE75nX1a | C11: 10
A12: Earlsdon | B12: ZkcST6 | C12: 11
A13: Eastern Green Junior | B13: 24x4Xc | C13: 12
A14: Edgewick | B14: R3kRR4 | C14: 13
A15: Ernesford Grange | B15: GKD5A2 | C15: 14
A16: Finham | B16: 9TWJzm1a | C16: 15
A17: Frederick Bird | B17: agw9kd | C17: 16
A18: Gosford Park | B18: cuxXcd | C18: 17
A19: Grange Farm | B19: V2DGxe | C19: 18
A20: Grangehurst | B20: aFbkW3 | C20: 19
A21: Hearsall | B21: 3JcVC31a | C21: 20
A22: Henley Green | B22: J5cwAZ | C22: 21
A23: Hill Farm Academy | B23: 8S7cc81a | C23: 22
A24: Holbrook | B24: GkEHwt | C24: 23
A25: Hollyfast | B25: D4N45K | C25: 24
A26: Howes | B26: ccAeb5 | C26: 25
A27: John Gulson | B27: 26cA4V | C27: 26
A28: John Shelton | B28: B8cds4 | C28: 27
A29: Joseph Cash | B29: 33GsH6 | C29: 28
A30: Keresley Grange | B30: RPPyVD1a | C30: 29
A31: Limbrick Wood | B31: uk7NEQ | C31: 30
A32: Little Heath | B32: Av3kpb | C32: 31
A33: Longford Park | B33: 79byb7 | C33: 32
A34: Manor Park | B34: MkRSqT | C34: 33
A35: Moathouse | B35: 7URcPj | C35: 34
A36: Moseley | B36: FHQ99Q | C36: 35
A37: Mount Nod | B37: t9C84k | C37: 36
A38: Parkgate | B38: vk7KgW1a | C38: 37
A39: Parkhill | B39: CDXegf | C39: 38
A40: Pearl Hyde | B40: j3MNSS1a | C40: 39
A41: Potters Green | B41: YEy8sy | C41: 40
A42: Radford Academy | B42: p43M6w1a | C42: 41
A43: Ravensdale | B43: APVTV2 | C43: 42
A44: Richard Lee | B44: hAt28j1a | C44: 43
A45: Sir Frank Whittle | B45: GX72Yc1a | C45: 44
A46: St. Christopher | B46: 47967b | C46: 45
A47: Southfields | B47: 5Wbz28 | C47: 46
A48: Sowe Valley | B48: CmbnbG | C48: 47
A49: Spon Gate | B49: kyX882 | C49: 48
A50: Stanton Bridge | B50: 334HJR1a | C50: 49
A51: Stivichall | B51: 7Qc6H3 | C51: 50
A52: Stoke | B52: 6R28Wf | C52: 51
A53: Stoke Heath | B53: abbM4V | C53: 52
A54: Templars | B54: X23zbq | C54: 53
A55: Whitley Abbey | B55: 64t3u4 | C55: 54
A56: Whitmore Park | B56: bY76ab | C56: 55
A57: Whoberley Hall | B57: Q6kTTB | C57: 56
A58: Willenhall Community | B58: rHAW8H | C58: 57
A59: Wyken Croft | B59: U4pEJ3 | C59: 58
A60: All Saints' CE | B60: BgJH5H | C60: 59
A61: All Souls' RC | B61: 5dQG7T | C61: 60
A62: Christ the King RC Primary | B62: AbcSYP1a | C62: 61
A63: Corpus Christi RC | B63: E446Hn1a | C63: 62
A64: St Laurance's CE Academy | B64: j877qE1a | C64: 63
A65: Good Shepherd RC | B65: ZX6bRM1a | C65: 64
A66: Holy Family RC | B66: y8FdX4 | C66: 65
A67: Leigh CE | B67: y5ZNQz1a | C67: 66
A68: Our Lady of the Assumption RC | B68: 6f89MQ | C68: 67
A69: Sacred Heart RC | B69: 4n6E5w1a | C69: 68
A70: St. Andrew's CE Infant | B70: zS5569 | C70: 69
A71: St. Anne's RC | B71: H2YK64 | C71: 70
A72: St. Augustine's RC | B72: cAb7FY1a | C72: 71
A73: St. Bartholomew's Academy | B73: CPKbKb1a | C73: 72
A74: St. Elizabeth's RC | B74: 2s47541a | C74: 73
A75: St. Gregory's RC | B75: YHzVS61a | C75: 74
A76: St. John Fisher RC | B76: G97Ncj1a | C76: 75
A77: St. John Vianney RC | B77: RkP3wb1a | C77: 76
A78: St. John's CE | B78: WV25551a | C78: 77
A79: St. Mary's & St. Benedict's RC | B79: hNW6cM | C79: 78
A80: St. Osburg's RC | B80: D7UP4r | C80: 79
A81: St. Patrick's RC | B81: 6bP7aV1a | C81: 80
A82: Sts. Peter & Paul RC | B82: K43Jb31a | C82: 81
A83: St. Thomas More RC | B83: Kc3rR81a | C83: 82
A84: Stretton CE Academy | B84: BMJT831a | C84: 83
A85: Walsgrave CE | B85: DM93SH1a | C85: 84

Sheet LoginPage

Sheet Funding Floor (hidden)
A1: ='Summary of Funding'!A1 -> Date Issued: | L1: ='Summary of Funding'!H1 -> Last amended: 21st December 2023
A2: COVENTRY CITY COUNCIL - PEOPLE'S DIRECTORATE
A3: ='Summary of Funding'!A3:H3 -> 2023/24 Funding Allocations for Schools | N3: ='Summary of Funding'!N3 -> 16
A4: Calculation of Funding Floor
A6: =VLOOKUP(("P"&N3),[18]Formula!$A$10:$X$96,3,FALSE) -> Frederick Bird | N6: Checks
I9: £ | L9: £
A11: 2020/21 Total funding allocated after MFL | L11: =VLOOKUP(("P"&$N$3),'[19]Funding Floor'!$A$3:$U$90,6,FALSE) -> 3499492.723 | N11: =VLOOKUP(("P"&$N$3),'[19]Funding Floor'!$A$3:$U$90,6,FALSE)-L11 -> 0
A13: Less:
A14: 2020/21 Mobility | I14: =VLOOKUP(("P"&$N$3),'[19]Funding Floor'!$A$3:$U$90,7,FALSE) -> 10715.27403 | J14: =VLOOKUP(("P"&$N$3),'[19]Funding Floor'!$A$3:$U$90,6,FALSE) -> 3499492.723 | N14: =VLOOKUP(("P"&$N$3),'[19]Funding Floor'!$A$3:$U$90,7,FALSE)-I14 -> 0
A16: 2020/21 Lump Sum | I16: =VLOOKUP(("P"&$N$3),'[19]Funding Floor'!$A$3:$U$90,8,FALSE) -> 110364.1 | J16: =VLOOKUP(("P"&$N$3),'[19]Funding Floor'!$A$3:$U$90,6,FALSE) -> 3499492.723 | N16: =VLOOKUP(("P"&$N$3),'[19]Funding Floor'!$A$3:$U$90,8,FALSE)-I16 -> 0
A18: 2020/21 Split Site | I18: =VLOOKUP(("P"&$N$3),'[19]Funding Floor'!$A$3:$U$90,9,FALSE) -> 0 | J18: =VLOOKUP(("P"&$N$3),'[19]Funding Floor'!$A$3:$U$90,6,FALSE) -> 3499492.723 | N18: =VLOOKUP(("P"&$N$3),'[19]Funding Floor'!$A$3:$U$90,9,FALSE)-I18 -> 0
A20: 2020/21 Rates Funding | I20: =VLOOKUP(("P"&$N$3),'[19]Funding Floor'!$A$3:$U$90,11,FALSE) -> 77146.75 | J20: =VLOOKUP(("P"&$N$3),'[19]Funding Floor'!$A$3:$U$90,6,FALSE) -> 3499492.723 | N20: =VLOOKUP(("P"&$N$3),'[19]Funding Floor'!$A$3:$U$90,11,FALSE)-I20 -> 0
A22: 2020/21 Education Improvement Commissioning Pot | I22: =VLOOKUP(("P"&$N$3),'[19]Funding Floor'!$A$3:$U$90,12,FALSE) -> 7103.408114 | J22: =VLOOKUP(("P"&$N$3),'[19]Funding Floor'!$A$3:$U$90,6,FALSE) -> 3499492.723 | L22: =-SUM(I14:I22) -> -205329.5321 | N22: =VLOOKUP(("P"&$N$3),'[19]Funding Floor'!$A$3:$U$90,12,FALSE)-I22 -> 0
A25: 2020/21 Pupil Led Funding | L25: =L11+L22 -> 3294163.191 | N25: =VLOOKUP(("P"&$N$3),'[19]Funding Floor'!$A$3:$U$90,15,FALSE)-L25 -> 0
A27: October 2019 Pupil Number | H27: [A] | I27: =VLOOKUP(("P"&$N$3),'[19]Funding Floor'!$A$3:$U$90,17,FALSE) -> 786 | J27: =VLOOKUP(("P"&$N$3),'[19]Funding Floor'!$A$3:$U$90,6,FALSE) -> 3499492.723 | N27: =VLOOKUP(("P"&$N$3),'[19]Funding Floor'!$A$3:$U$90,17,FALSE)-I27 -> 0
A29: 2020/21 Pupil Led Funding (per pupil) | H29: [B] | L29: =L25/I27 -> 4191.047317 | N29: =VLOOKUP(("P"&$N$3),'[19]Funding Floor'!$A$3:$U$90,18,FALSE)-L29 -> 0
A32: 2017/18 calculated Funding Floor (FF) per Pupil | I32: =VLOOKUP(("P"&$N$3),'[19]Funding Floor'!$A$3:$U$90,4,FALSE) -> 4181.5766 | J32: =VLOOKUP(("P"&$N$3),'[19]Funding Floor'!$A$3:$U$90,6,FALSE) -> 3499492.723 | N32: =VLOOKUP(("P"&$N$3),'[19]Funding Floor'!$A$3:$U$90,4,FALSE)-I32 -> 0
A34: 2020/21 Funding Floor protection level | I34: 0.01
A36: Funding Floor per pupil | H36: [C] | L36: =I32*(1+I34) -> 4223.392366
A38: Shortfall to Funding Floor per pupil | H38: [D] = [C] - [B] | L38: =IF(L29<L36,L36-L29,0) -> 32.34504931
A42: 2020/21 Funding Floor Adjustment | H42: = [A] x [D] | L42: =L38*I27 -> 25423.20875 | N42: =VLOOKUP(("P"&$N$3),'[19]Funding Floor'!$A$3:$U$90,21,FALSE)-L42 -> 3.20142135e-10
